[Event "Indian Blitz Championship 2023"]
[Site "Nashik"]
[Date "2024.03.07"]
[Round "1.1"]
[White "Bartakke Aditya"]
[Black "Ghosh, Diptayan"]
[Result "0-1"]
[ECO "B12"]
[WhiteElo "1843"]
[BlackElo "2559"]
[Annotator "TA"]
[PlyCount "23"]
[EventDate "2024.03.07"]
[EventType "blitz"]
[EventCountry "IND"]
[SourceTitle "playchess.com"]
[Source "ChessBase"]
[SourceQuality "1"]
[TimeControl "180+2"]

{[%evp 13,23,13,2,0,8,4,12,-31,-24,-447,-435,-1699]} 1. e4 {[%emt 0:00:01]} c6 {[%emt 0:00:03]} 2. d4 {[%emt 0:00:01]} d5 {[%emt 0:00:01]} 3. e5 {[%emt 0:00:02]} Bf5 {[%emt 0:00:01]} 4. Bd3 {[%emt 0:00:01]} Bxd3 {[%emt 0:00:03]} 5. Qxd3 {[%emt 0:00:02]} e6 {[%emt 0:00:01]} 6. Ne2 {[%emt 0:00:02]} c5 {[%emt 0:00:03]} 7. c3 {[%emt 0:00:07]} Nc6 {[%emt 0:00:01]} 8. Nd2 {[%emt 0:00:02]} Nge7 {[%emt 0:00:08][%cal Bg8e7,Be7f5,Bf5h4][%mdl 32]} 9. Nf3 {[%emt 0:00:02]} Nf5 {[%emt 0:00:02]} 10. g4 {[%emt 0:00:03]} Nh4 {[%emt 0:00:04] [#] ...c4 would now be deadly.} 11. a3 $2 {[%emt 0:02:07][%mdl 8192]} (11. O-O $11) 11... c4 $19 {[%emt 0:00:06]} 12. Nfg1 {[%emt 0:00:56] White did not feel at home in the position after the opening.   Weighted Error Value: White=1.58/Black=0.04 (flawless) .  Loses game:     	White=1     	---        Mistake:       	White=1     	---        Inaccurate:     	White=1     	---        OK:         	White=1     	Black=1      Best:        	---       	Black=1} (12. Qd1 $142 Nxf3+ 13. Kf1) 0-1

[Event "Indian Blitz Championship 2023"]
[Site "Nashik"]
[Date "2024.03.07"]
[Round "1.2"]
[White "Mitrabha, Guha"]
[Black "Sherla Prathamesh"]
[Result "1-0"]
[ECO "D90"]
[WhiteElo "2526"]
[BlackElo "1850"]
[Annotator "TA"]
[PlyCount "93"]
[EventDate "2024.03.07"]
[EventType "blitz"]
[EventCountry "IND"]
[SourceTitle "playchess.com"]
[Source "ChessBase"]
[SourceQuality "1"]
[TimeControl "180+2"]

{[%evp 20,93,79,67,93,37,81,56,77,43,89,104,118,96,100,22,197,200,185,189,217,157,225,203,227,215,241,238,233,222,308,216,438,436,444,308,296,292,303,288,309,302,310,298,306,306,326,327,302,301,793,794,866,855,817,817,797,777,884,883,762,648,911,910,848,814,1289,1282,2195,2195,2007,2236,5397,5081,6079,5871]} 1. Nf3 {[%emt 0:00:01]} c5 {[%emt 0:00:02]} 2. c3 {[%emt 0:00:03]} Nf6 {[%emt 0:00:10]} 3. d4 {[%emt 0:00:00]} cxd4 {[%emt 0:00:02]} 4. cxd4 {[%emt 0:00:01]} g6 {[%emt 0:00:07]} 5. Nc3 {[%emt 0:00:01]} d5 {[%emt 0:00:01]} 6. Bf4 {[%emt 0:00:02]} Bg7 {[%emt 0:00:07]} 7. h3 {[%emt 0:00:01]} O-O {[%emt 0:00:03]} 8. e3 {[%emt 0:00:02]} Nc6 {[%emt 0:00:09]} 9. Be2 {[%emt 0:00:02]} a6 {[%emt 0:00:18]} 10. Rc1 {[%emt 0:00:02]} Bf5 {[%emt 0:00:17]} 11. O-O {[%emt 0:00:02]} Ne4 {[%emt 0:00:03] [#]} 12. Nxe4 {[%emt 0:00:10]} (12. Qb3 $1 $16) 12... Bxe4 {[%emt 0:00:02]} 13. Nd2 {[%emt 0:00:01][%cal Bf3d2,Bd2b3,Bb3c5,Bc5a4,Ba4b6,Bb6d5][%mdl 32]} Bf5 {[%emt 0:00:06] White is slightly better.} 14. Nb3 {[%emt 0:00:07]} Re8 {[%emt 0:00:38]} (14... e5 $14 {is more appropriate.} 15. dxe5 Nxe5) 15. Nc5 $16 {[%emt 0:00:04]} Qb6 {[%emt 0:00:01]} 16. Na4 {[%emt 0:00:09]} Qa5 {[%emt 0:00:06]} 17. Qb3 {[%emt 0:00:04]} ({White should play} 17. g4 $16 e5 18. Bxe5 Bxe5 19. dxe5 (19. gxf5 Bb8 $16)) 17... Qb4 $2 {[%emt 0:00:17] A mistake that costs the game.} (17... Qd2 $1 $11 {and Black stays safe.}) 18. Qxb4 $18 {[%emt 0:00:18]} Nxb4 {[%emt 0:00:02]} 19. Nb6 $36 {[%emt 0:00:01][%mdl 2048] White is in control.} Ra7 {[%emt 0:00:19]} 20. a3 {[%emt 0:00:02]} Nc6 {[%emt 0:00:04]} (20... Nd3 $16 {is a better defense.}) 21. Nxd5 {[%emt 0:00:03]} e5 {[%emt 0:00:02]} 22. dxe5 {[%emt 0:00:01]} Bxe5 {[%emt 0:00:15]} 23. Bxe5 {[%emt 0:00:02]} Rxe5 {[%emt 0:00:01]} 24. Nb6 {[%emt 0:00:01]} Ne7 {[%emt 0:00:20]} 25. Rfd1 {[%emt 0:00:02] g4 would now be deadly.} Be6 $2 {[%emt 0:00:05]} (25... Re6) 26. Rc7 {[%emt 0:00:08]} Nd5 {[%emt 0:00:01]} 27. Nxd5 {[%emt 0:00:01]} Rxd5 {[%emt 0:00:05]} 28. Rxd5 {[%emt 0:00:07]} Bxd5 {[%emt 0:00:01]} 29. Bf3 {[%emt 0:00:01]} Bxf3 {[%emt 0:00:02]} 30. gxf3 {[%emt 0:00:01][%mdl 4096] Endgame. KR-KR} Kf8 {[%emt 0:00:05]} 31. a4 {[%emt 0:00:02]} a5 {[%emt 0:00:03]} 32. f4 {[%emt 0:00:01]} Ke8 {[%emt 0:00:01]} 33. Kg2 {[%emt 0:00:01]} Kf8 {[%emt 0:00:04]} 34. Kf3 {[%emt 0:00:01]} f5 $2 {[%emt 0:00:04]} (34... h5 35. b3 Kg7) 35. Rxh7 {[%emt 0:00:02] White is clearly winning.} Kg8 {[%emt 0:00:03]} 36. Rd7 {[%emt 0:00:01]} Kf8 {[%emt 0:00:01]} 37. Kg3 {[%emt 0:00:02]} Ke8 {[%emt 0:00:01]} 38. Rg7 {[%emt 0:00:02]} Ra6 {[%emt 0:00:03]} 39. Rxb7 {[%emt 0:00:02]} Rc6 {[%emt 0:00:01]} 40. Rb5 {[%emt 0:00:01]} Ra6 {[%emt 0:00:03]} 41. Kh4 {[%emt 0:00:01]} Kf7 {[%emt 0:00:04]} 42. Kg5 {[%emt 0:00:01]} Rc6 {[%emt 0:00:02]} 43. Rxa5 {[%emt 0:00:03]} Rc2 {[%emt 0:00:01]} 44. Ra7+ {[%emt 0:00:01]} Ke6 {[%emt 0:00:02]} 45. Kxg6 {[%emt 0:00:02] [#] h4 is the strong threat.} Rxf2 {[%emt 0:00:01]} 46. Ra6+ {[%emt 0:00:00]} Kd5 {[%emt 0:00:02]} 47. Kxf5 {[%emt 0:00:02] Weighted Error Value: White=0.31/Black=0.48.  Loses game:     	---       	Black=1      Mistake:       	White=2     	Black=4      Inaccurate:     	White=2     	Black=2      OK:         	White=10    	Black=2      Best:        	White=1     	---} 1-0

[Event "Indian Blitz Championship 2023"]
[Site "Nashik"]
[Date "2024.03.07"]
[Round "1.3"]
[White "Pranay Akula"]
[Black "Karthik Venkataraman"]
[Result "0-1"]
[ECO "B26"]
[WhiteElo "1816"]
[BlackElo "2609"]
[Annotator "TA"]
[PlyCount "72"]
[EventDate "2024.03.07"]
[EventType "blitz"]
[EventCountry "IND"]
[SourceTitle "playchess.com"]
[Source "ChessBase"]
[SourceQuality "1"]
[TimeControl "180+2"]

{[%evp 16,72,-4,-2,5,-4,-5,-13,0,0,0,-38,-28,0,-4,-10,2,-36,-22,-70,-81,-86,89,87,84,85,78,89,87,0,51,-26,204,-59,-75,-65,-64,-164,-169,-158,-151,-147,-133,-159,-101,-223,-217,-516,-516,-516,-491,-543,-543,-29977,-29978,-29978,-29979,-29979,-29980]} 1. e4 {[%emt 0:00:01]} c5 {[%emt 0:00:01]} 2. Nc3 {[%emt 0:00:03]} Nc6 {[%emt 0:00:01]} 3. g3 {[%emt 0:00:01]} g6 {[%emt 0:00:01]} 4. Bg2 {[%emt 0:00:01]} Bg7 {[%emt 0:00:01]} 5. d3 {[%emt 0:00:01]} d6 {[%emt 0:00:01]} 6. Be3 {[%emt 0:00:02]} Rb8 {[%emt 0:00:03]} 7. Qd2 {[%emt 0:00:01]} b5 {[%emt 0:00:02][%cal Bb7b5,Bb5b4][%mdl 32]} 8. Nge2 {[%emt 0:00:01]} b4 {[%emt 0:00:02]} 9. Nd1 {[%emt 0:00:02]} h5 {[%emt 0:00:06][%cal Bh7h5,Bh5h4][%mdl 32]} 10. h3 {[%emt 0:00:02]} Nd4 {[%emt 0:00:03]} 11. O-O {[%emt 0:00:19]} e5 {[%emt 0:00:10][%cal Oc8h3] The position is equal.} 12. f4 {[%emt 0:00:13]} Ne7 {[%emt 0:00:07]} 13. Nc1 {[%emt 0:00:13]} h4 {[%emt 0:00:07]} 14. g4 {[%emt 0:00:06]} exf4 {[%emt 0:00:02]} 15. Bxf4 {[%emt 0:00:05]} Ne6 {[%emt 0:00:01]} 16. Be3 {[%emt 0:00:10]} d5 {[%emt 0:00:04]} 17. Qf2 {[%emt 0:01:14]} (17. a3 $11) 17... O-O $15 {[%emt 0:00:02]} 18. Qxh4 {[%emt 0:00:22]} c4 $2 {[%emt 0:00:08] [#]} (18... dxe4 $17 {and life is bright.} 19. Bh6 Bd4+ 20. Be3 exd3 21. Nxd3 Bb7 22. Bxd4 Qxd4+ 23. Qf2 Bxg2 24. Qxd4 cxd4 (24... Nxd4 25. Kxg2 Nd5 26. Rf2 $15) 25. Kxg2 Nd5) 19. exd5 $16 {[%emt 0:00:29]} Nxd5 {[%emt 0:00:01]} 20. Qxd8 {[%emt 0:00:00]} Rxd8 {[%emt 0:00:01]} 21. Bxa7 {[%emt 0:00:05]} Rb7 {[%emt 0:00:01]} 22. Bf2 {[%emt 0:00:08]} ({White should play} 22. dxc4 $16 Rxa7 23. Bxd5 (23. cxd5 Ba6 $11)) 22... Rc7 {[%emt 0:00:05]} (22... Ndf4 $11) 23. dxc4 {[%emt 0:00:05]} ({Better is} 23. Bg3 $14) 23... Rxc4 $2 {[%emt 0:00:01] [#]} (23... Ndf4 $1 $11 {and Black stays safe.} 24. Nb3 Nxg2 (24... Rxc4 25. Bb6 $11) 25. Kxg2 Rxc4) 24. Ne3 $2 {[%emt 0:00:02]} (24. Bxd5 $18 Rxd5 25. Ne3) 24... Nxe3 $15 {[%emt 0:00:03]} 25. Bxe3 {[%emt 0:00:01]} Rxc2 {[%emt 0:00:07] Black is more active.} 26. Nb3 {[%emt 0:00:02]} (26. Rb1 $15) 26... Rxb2 $19 {[%emt 0:00:09]} ({Don't do} 26... Bxb2 27. Rad1 $15) 27. Rad1 {[%emt 0:00:01]} Rxd1 {[%emt 0:00:03]} 28. Rxd1 {[%emt 0:00:00]} Rxa2 {[%emt 0:00:01]} 29. Bd5 {[%emt 0:00:05]} Rb2 {[%emt 0:00:05]} (29... Nc7 $142 {Threatens to win with ...Nxd5.} 30. Nc5 Re2) 30. Nc5 {[%emt 0:00:01]} (30. Rd2 $17 {was worth a try.}) 30... Re2 {[%emt 0:00:30]} 31. Nxe6 $2 {[%emt 0:00:05]} (31. Bf2 {was forced.}) 31... Bxe6 {[%emt 0:00:07]} (31... fxe6 32. Bc4 Rxe3 33. Rd8+ Kh7 34. Rxc8 $19) (31... Rxe3 $2 32. Nd8 $19) 32. Bxe6 {[%emt 0:00:01]} fxe6 {[%emt 0:00:01] KRB-KRB} (32... Rxe3 33. Rd8+ Bf8 34. Bd5 $17) 33. Bc5 {[%emt 0:00:00]} b3 {[%emt 0:00:02] Hoping for ...Ra2.} 34. Bd4 {[%emt 0:00:03]} Bxd4+ {[%emt 0:00:03] Black mates.} 35. Rxd4 {[%emt 0:00:00]} b2 {[%emt 0:00:01]} 36. Rd1 {[%emt 0:00:02]} Rc2 {[%emt 0:00:01] Weighted Error Value: White=0.72/Black=0.34.  Loses game:     	---       	Black=1      Missed win:     	White=1     	---        Mistake:       	White=6     	Black=3      Inaccurate:     	White=3     	---        OK:         	White=6     	Black=9      Best:        	White=1     	Black=4} 0-1

[Event "Indian Blitz Championship 2023"]
[Site "Nashik"]
[Date "2024.03.07"]
[Round "1.4"]
[White "Ravi, Teja S."]
[Black "Kherdekar Arnav"]
[Result "1-0"]
[ECO "D04"]
[WhiteElo "2437"]
[BlackElo "1846"]
[Annotator "RC"]
[PlyCount "87"]
[EventDate "2024.03.07"]
[EventType "blitz"]
[EventCountry "IND"]
[SourceTitle "playchess.com"]
[Source "ChessBase"]
[SourceQuality "1"]
[TimeControl "180+2"]

1. d4 {[%emt 0:00:01]} Nf6 {[%emt 0:00:01]} 2. Nf3 {[%emt 0:00:00]} c5 {[%emt 0:00:01]} 3. e3 {[%emt 0:00:01]} d5 {[%emt 0:00:01]} 4. Bd3 {[%emt 0:00:02]} Nc6 {[%emt 0:00:04]} 5. O-O {[%emt 0:00:04]} Bg4 {[%emt 0:00:02]} 6. c3 {[%emt 0:00:03]} e6 {[%emt 0:00:01]} 7. Nbd2 {[%emt 0:00:03]} c4 {[%emt 0:00:14]} 8. Bc2 {[%emt 0:00:02]} Be7 {[%emt 0:00:01]} 9. e4 {[%emt 0:00:01]} O-O {[%emt 0:00:03]} 10. h3 {[%emt 0:00:01]} Bh5 {[%emt 0:00:01]} 11. Re1 {[%emt 0:00:01]} b5 {[%emt 0:00:05]} 12. a3 {[%emt 0:00:01]} a5 {[%emt 0:02:52]} 13. exd5 {[%emt 0:00:12]} exd5 {[%emt 0:00:00]} 14. Nf1 {[%emt 0:00:01]} Re8 {[%emt 0:00:00]} 15. Ng3 {[%emt 0:00:03]} Bg6 {[%emt 0:00:00]} 16. Nf5 {[%emt 0:00:14]} Bf8 {[%emt 0:00:00]} 17. Bg5 {[%emt 0:00:02]} h6 {[%emt 0:00:00]} 18. Rxe8 {[%emt 0:00:06]} Qxe8 {[%emt 0:00:00]} 19. Nxh6+ {[%emt 0:00:03]} gxh6 {[%emt 0:00:00]} 20. Bxf6 {[%emt 0:00:02]} Qe6 {[%emt 0:00:00]} 21. Bh4 {[%emt 0:00:02]} Rb8 {[%emt 0:00:00]} 22. Bg3 {[%emt 0:00:13]} Re8 {[%emt 0:00:00]} 23. Qd2 {[%emt 0:00:02]} Bxc2 {[%emt 0:00:00]} 24. Qxc2 {[%emt 0:00:01]} Qe2 {[%emt 0:00:00]} 25. Qd2 {[%emt 0:00:18]} Qxd2 {[%emt 0:00:00]} 26. Nxd2 {[%emt 0:00:01]} Re2 {[%emt 0:00:00]} 27. Rd1 {[%emt 0:00:01]} b4 {[%emt 0:00:00]} 28. Kf1 {[%emt 0:00:01]} Re8 {[%emt 0:00:00]} 29. axb4 {[%emt 0:00:05]} axb4 {[%emt 0:00:00]} 30. Ra1 {[%emt 0:00:00]} Re6 {[%emt 0:00:00]} 31. Ra8 {[%emt 0:00:06]} Kg7 {[%emt 0:00:00]} 32. Nf3 {[%emt 0:00:02]} Be7 {[%emt 0:00:00]} 33. Ne5 {[%emt 0:00:04]} Nxe5 {[%emt 0:00:00]} 34. Bxe5+ {[%emt 0:00:15]} f6 {[%emt 0:00:00]} 35. Bf4 {[%emt 0:00:04]} Rb6 {[%emt 0:00:24]} 36. Ra7 {[%emt 0:00:04]} Kf7 {[%emt 0:00:01]} 37. Bxh6 {[%emt 0:00:03]} bxc3 {[%emt 0:00:07]} 38. bxc3 {[%emt 0:00:01]} Rb3 {[%emt 0:00:02]} 39. Bd2 {[%emt 0:00:03]} Ke6 {[%emt 0:00:04]} 40. h4 {[%emt 0:00:02]} Ba3 {[%emt 0:00:03]} 41. h5 {[%emt 0:00:04]} Bb2 {[%emt 0:00:11]} 42. h6 {[%emt 0:00:01]} Rb8 {[%emt 0:00:01]} 43. h7 {[%emt 0:00:03]} Rh8 {[%emt 0:00:01]} 44. Ra2 {[%emt 0:01:51]} 1-0

[Event "Indian Blitz Championship 2023"]
[Site "Nashik"]
[Date "2024.03.07"]
[Round "1.5"]
[White "Jain, Kushagra"]
[Black "Aronyak Ghosh"]
[Result "0-1"]
[ECO "B11"]
[WhiteElo "1942"]
[BlackElo "2517"]
[Annotator "TA"]
[PlyCount "57"]
[EventDate "2024.03.07"]
[EventType "blitz"]
[EventCountry "IND"]
[SourceTitle "playchess.com"]
[Source "ChessBase"]
[SourceQuality "1"]
[TimeControl "180+2"]

{[%evp 10,57,25,24,25,20,20,23,34,15,58,44,59,62,66,45,62,50,94,62,55,71,94,73,118,54,64,37,30,7,6,7,7,2,2,4,2,0,0,0,0,-152,0,-12,-11,-117,-115,-134,-120,-29990]} 1. e4 {[%emt 0:00:01]} c6 {[%emt 0:00:02]} 2. Nf3 {[%emt 0:00:02]} d5 {[%emt 0:00:01]} 3. Nc3 {[%emt 0:00:01]} dxe4 {[%emt 0:00:02]} 4. Nxe4 {[%emt 0:00:01]} Nf6 {[%emt 0:00:02]} 5. Qe2 {[%emt 0:00:02]} Nxe4 {[%emt 0:00:01]} 6. Qxe4 {[%emt 0:00:01]} Be6 {[%emt 0:00:02]} 7. Be2 {[%emt 0:00:11]} Nd7 {[%emt 0:00:06]} 8. d4 {[%emt 0:00:01]} Nf6 {[%emt 0:00:04] White has an edge.} 9. Qe5 {[%emt 0:00:20]} h6 {[%emt 0:00:52]} 10. c4 {[%emt 0:01:23]} g6 {[%emt 0:00:19]} 11. O-O {[%emt 0:00:31]} Bg7 {[%emt 0:00:04]} 12. Qe3 {[%emt 0:00:13]} O-O {[%emt 0:00:06][%cal Ob7b5]} 13. h3 {[%emt 0:00:02]} Qb6 {[%emt 0:00:25]} 14. Bd2 {[%emt 0:00:10]} Rad8 {[%emt 0:00:08][%cal Oe6f5]} 15. Bc3 {[%emt 0:00:01]} Rfe8 {[%emt 0:00:03]} 16. Rad1 {[%emt 0:00:03]} Bf5 {[%emt 0:00:04] [#]} 17. Ne5 {[%emt 0:00:05]} ({White should play} 17. g4 $1 $16 {[%cal Rg4f5]} Bc8 18. Ne5) 17... Ne4 $14 {[%emt 0:00:07]} 18. c5 {[%emt 0:00:15]} Qc7 {[%emt 0:00:04]} 19. Bc4 {[%emt 0:00:01]} (19. f4 {simplifies} Nf6 20. Bc4 Nd5 21. Qf3) 19... Bxe5 {[%emt 0:00:17]} 20. dxe5 {[%emt 0:00:03] aiming for e6.} Nxc3 {[%emt 0:00:02]} 21. Qxc3 {[%emt 0:00:04][%cal Oe5e6]} Rxd1 {[%emt 0:00:04]} 22. Rxd1 {[%emt 0:00:01]} Rd8 $132 {[%emt 0:00:00][%mdl 2048] Against e6. Black is fighting back} 23. Rxd8+ {[%emt 0:00:04]} Qxd8 $11 {[%emt 0:00:01][%mdl 4096] Endgame. KQB-KQB} 24. Qb3 {[%emt 0:00:01]} e6 {[%emt 0:00:19]} 25. Qxb7 $2 {[%emt 0:00:08] [#]} (25. Qc3 $11) 25... Qd4 $2 {[%emt 0:00:02]} (25... Qd1+ $17 26. Kh2 Qd2) 26. Qb8+ {[%emt 0:00:05]} Kg7 {[%emt 0:00:01]} 27. Bb3 {[%emt 0:00:02]} (27. Qb3 $11 {keeps the balance.}) 27... Qxc5 $17 {[%emt 0:00:03]} 28. Qc7 {[%emt 0:00:03]} ({Wrong is} 28. Bd1 $2 Qc1 29. Qb3 c5 $19) 28... h5 {[%emt 0:00:07]} (28... Qc1+ $2 29. Kh2 Qxb2 30. Qxa7 Qxe5+ 31. Kh1 $19) 29. g3 $2 {[%emt 0:00:05][%mdl 8192] Weighted Error Value: White=0.32/Black=0.16 (very precise) .  Loses game:     	White=1     	---        Mistake:       	White=3     	Black=1      Inaccurate:     	White=2     	Black=3      OK:         	White=4     	Black=8      Best:        	---       	Black=2} (29. Qd8 $17) 0-1

[Event "Indian Blitz Championship 2023"]
[Site "Nashik"]
[Date "2024.03.07"]
[Round "1.6"]
[White "Raja Rithvik R"]
[Black "Falgun, D Purohit"]
[Result "1-0"]
[ECO "A43"]
[WhiteElo "2532"]
[BlackElo "1725"]
[Annotator "TA"]
[PlyCount "48"]
[EventDate "2024.03.07"]
[EventType "blitz"]
[EventCountry "IND"]
[SourceTitle "playchess.com"]
[Source "ChessBase"]
[SourceQuality "1"]
[TimeControl "180+2"]

{[%evp 14,48,46,35,64,49,46,43,48,56,49,55,58,27,68,81,83,77,68,62,64,53,258,260,347,365,367,354,534,538,525,531,552,550,647,635,608]} 1. d4 {[%emt 0:00:03]} c5 {[%emt 0:00:00]} 2. d5 {[%emt 0:00:02]} g6 {[%emt 0:00:02]} 3. e4 {[%emt 0:00:02]} Bg7 {[%emt 0:00:02]} 4. Nc3 {[%emt 0:00:02]} d6 {[%emt 0:00:04]} 5. Nf3 {[%emt 0:00:02]} Nf6 {[%emt 0:00:02]} 6. Bb5+ {[%emt 0:00:01]} Bd7 {[%emt 0:00:02]} 7. a4 {[%emt 0:00:01]} O-O {[%emt 0:00:06]} 8. O-O {[%emt 0:00:02]} a6 {[%emt 0:00:10]} 9. Bd3 {[%emt 0:00:01]} Bg4 {[%emt 0:00:11]} 10. h3 {[%emt 0:00:06]} Bxf3 {[%emt 0:00:02] White is slightly better.} 11. Qxf3 {[%emt 0:00:01]} Nbd7 {[%emt 0:00:00]} 12. Qd1 {[%emt 0:00:09]} Rc8 {[%emt 0:00:10]} 13. Be3 {[%emt 0:00:10]} Ne8 {[%emt 0:00:29]} 14. a5 {[%emt 0:00:02] Black is weak on the light squares} Nc7 {[%emt 0:00:21]} 15. f4 {[%emt 0:00:05]} e6 {[%emt 0:00:26]} 16. dxe6 {[%emt 0:00:08]} fxe6 {[%emt 0:00:01]} 17. Bc4 {[%emt 0:00:06]} Kh8 $2 {[%emt 0:00:05] [#] This costs Black the game.} ({Black should play} 17... Qe7 $14) 18. Qxd6 $18 {[%emt 0:00:06]} Re8 {[%emt 0:00:34][%cal Bf8e8,Be8e7,Be7f7][%mdl 32]} 19. Rad1 {[%emt 0:00:20]} (19. Bxc5 $2 {perishes.} Nxc5 20. e5 Qxd6 21. exd6 Bd4+ 22. Kh2 Bxc3 23. bxc3 Nb5 24. Bxb5 axb5 $19) 19... Nf8 {[%emt 0:00:14]} 20. e5 {[%emt 0:00:13]} Qe7 {[%emt 0:00:21]} (20... Qxd6 $142 21. exd6 (21. Rxd6 g5 $18) 21... Nd5) 21. Qxe7 {[%emt 0:00:03] White is clearly winning.} Rxe7 {[%emt 0:00:01]} 22. Bxc5 {[%emt 0:00:03]} Rf7 {[%emt 0:00:23]} 23. Ne4 {[%emt 0:00:03] [#] Hoping for Nd6.} Nd5 {[%emt 0:00:00]} 24. Bxd5 {[%emt 0:00:03]} exd5 {[%emt 0:00:00] Weighted Error Value: White=0.04 (flawless) /Black=0.58.  Loses game:     	---       	Black=1      Mistake:       	---       	Black=1      Inaccurate:     	White=1     	Black=2      OK:         	White=8     	Black=4      Best:        	White=1     	---} 1-0

[Event "Indian Blitz Championship 2023"]
[Site "Nashik"]
[Date "2024.03.07"]
[Round "1.7"]
[White "Dheeraj H"]
[Black "Laxman, R.R."]
[Result "0-1"]
[ECO "D60"]
[WhiteElo "1754"]
[BlackElo "2331"]
[Annotator "TA"]
[PlyCount "34"]
[EventDate "2024.03.07"]
[EventType "blitz"]
[EventCountry "IND"]
[SourceTitle "playchess.com"]
[Source "ChessBase"]
[SourceQuality "1"]
[TimeControl "180+2"]

{[%evp 13,34,2,-3,-4,0,-28,-23,-26,-18,-19,-16,-22,-17,-16,0,-45,-49,-100,-79,-95,-88,-432,-419]} 1. d4 {[%emt 0:00:03]} Nf6 {[%emt 0:00:03]} 2. Nf3 {[%emt 0:00:08]} e6 {[%emt 0:00:03]} 3. Bg5 {[%emt 0:00:14]} d5 {[%emt 0:00:04]} 4. e3 {[%emt 0:00:07]} Nbd7 {[%emt 0:00:04]} 5. c4 {[%emt 0:00:09]} Be7 {[%emt 0:00:05]} 6. Nc3 {[%emt 0:00:16]} O-O {[%emt 0:00:06]} 7. c5 {[%emt 0:00:28]} c6 {[%emt 0:00:00]} 8. Bd3 {[%emt 0:00:01]} b6 {[%emt 0:00:14]} 9. cxb6 {[%emt 0:00:40]} axb6 {[%emt 0:00:01]} 10. O-O {[%emt 0:00:03] Black has an edge.} Ba6 {[%emt 0:00:11]} 11. Bxa6 {[%emt 0:00:25]} Rxa6 {[%emt 0:00:01]} 12. a3 {[%emt 0:00:01]} c5 {[%emt 0:00:05]} 13. Qe2 {[%emt 0:00:10]} Ra8 {[%emt 0:00:06]} 14. Qb5 {[%emt 0:00:08]} c4 {[%emt 0:00:07]} 15. b3 {[%emt 0:00:18]} (15. Bf4 $15) 15... Ra5 $17 {[%emt 0:00:17]} ({Much weaker is} 15... Bxa3 $6 16. bxc4 Ra5 17. Bxf6 Nxf6 18. Qc6 $11) 16. Qc6 {[%emt 0:00:08]} cxb3 {[%emt 0:00:02] [#] aiming for ...Qb8.} ({Of course not} 16... Bxa3 $6 17. Bxf6 (17. bxc4 Qa8 $11) 17... Nxf6 18. bxc4 $11) 17. Nb5 $2 {[%emt 0:00:09][%mdl 8192]} (17. Rfb1 $17 {is tougher.}) 17... Nb8 {[%emt 0:00:06] Weighted Error Value: White=0.59/Black=0.04 (flawless) .  Loses game:     	White=1     	---        Mistake:       	White=1     	---        Inaccurate:     	White=2     	---        OK:         	White=3     	Black=4      Best:        	---       	Black=1} 0-1

[Event "Indian Blitz Championship 2023"]
[Site "Nashik"]
[Date "2024.03.07"]
[Round "1.8"]
[White "Raahul V S"]
[Black "Yohan Yadav Tarala"]
[Result "1-0"]
[ECO "A10"]
[WhiteElo "2314"]
[BlackElo "1746"]
[Annotator "TA"]
[PlyCount "33"]
[EventDate "2024.03.07"]
[EventType "blitz"]
[EventCountry "IND"]
[SourceTitle "playchess.com"]
[Source "ChessBase"]
[SourceQuality "1"]
[TimeControl "180+2"]

{[%evp 10,33,-8,-20,29,0,31,31,27,26,35,-8,43,47,57,43,125,141,144,141,223,218,223,185,1004,968]} 1. c4 {[%emt 0:00:01]} b6 {[%emt 0:00:02]} 2. Nc3 {[%emt 0:00:01]} Bb7 {[%emt 0:00:01]} 3. e4 {[%emt 0:00:01]} e5 {[%emt 0:00:01]} 4. Nf3 {[%emt 0:00:02]} Nc6 {[%emt 0:00:04]} 5. d4 {[%emt 0:00:01]} exd4 {[%emt 0:00:32]} 6. Nxd4 {[%emt 0:00:02]} Bc5 {[%emt 0:00:36]} (6... Bb4 $142) 7. Be3 {[%emt 0:00:10]} Nxd4 {[%emt 0:00:45]} 8. Bxd4 {[%emt 0:00:01]} Bxd4 {[%emt 0:00:14] White is slightly better.} 9. Qxd4 {[%emt 0:00:02]} Qf6 {[%emt 0:00:02]} 10. e5 {[%emt 0:00:02]} Qe7 {[%emt 0:00:13]} (10... Qe6 $11) 11. Nd5 $14 {[%emt 0:00:20]} Bxd5 {[%emt 0:00:12]} 12. cxd5 {[%emt 0:00:01][%cal Bc4d5,Bd5d6][%mdl 32]} d6 {[%emt 0:00:22] Black is weak on the light squares} ({Better is} 12... f6 $14) 13. Bb5+ $16 {[%emt 0:00:03]} Kf8 {[%emt 0:00:04]} 14. f4 $36 {[%emt 0:00:02][%mdl 2048] White is in control. White is more active.} Nh6 {[%emt 0:00:14]} (14... a6 $16 {was called for.}) 15. O-O $18 {[%emt 0:00:06]} Nf5 {[%emt 0:00:03]} 16. Qe4 {[%emt 0:00:07]} dxe5 $2 {[%emt 0:00:06] [#]} (16... g6 17. g4 Ng7) 17. d6 {[%emt 0:00:02] Weighted Error Value: White=0.20 (precise) /Black=0.35.  Mistake:       	---       	Black=4      Inaccurate:     	White=2     	Black=1      OK:         	White=4     	Black=2      Best:        	White=1     	Black=1} ({Not} 17. fxe5 Nd6 18. Qe2 (18. exd6 $2 {too greedy.} Qxe4 19. dxc7 Rc8 $19) 18... Nxb5 $18) 1-0